[Event "RUS-ch Women Rapid 2019"]
[Site "Sochi"]
[Date "2019.10.16"]
[Round "6.6"]
[White "Ambartsumova, Karina"]
[Black "Samigullina, Diana"]
[Result "1-0"]
[ECO "A06"]
[WhiteElo "2336"]
[BlackElo "2161"]
[Annotator "NA"]
[PlyCount "95"]
[EventDate "2019.10.15"]
[EventType "swiss"]
[EventCountry "RUS"]
[SourceTitle "playchess.com"]
[Source "ChessBase"]
[SourceQuality "1"]
[TimeControl "900+10"]

1. Nf3 {[%emt 0:00:00]} d5 {[%emt 0:00:00]} 2. e3 {[%emt 0:00:00]} Nf6 {[%emt 0:00:00]} 3. c4 {[%emt 0:00:03]} c6 {[%emt 0:00:15]} 4. Nc3 {[%emt 0:00:14]} e6 {[%emt 0:00:21]} 5. b3 {[%emt 0:00:06]} Bd6 {[%emt 0:00:33]} 6. Bb2 {[%emt 0:00:02]} O-O {[%emt 0:00:04]} 7. Be2 {[%emt 0:00:20]} Nbd7 {[%emt 0:00:10]} 8. Qc2 {[%emt 0:00:02]} Qe7 {[%emt 0:00:10]} 9. Rg1 {[%emt 0:00:06]} a6 {[%emt 0:03:02]} 10. g4 {[%emt 0:00:22]} Ba3 {[%emt 0:02:21]} 11. g5 {[%emt 0:00:22]} Ne8 {[%emt 0:00:22]} 12. Bxa3 {[%emt 0:00:49]} Qxa3 {[%emt 0:00:04]} 13. h4 {[%emt 0:01:31]} b5 {[%emt 0:01:49]} 14. h5 {[%emt 0:02:19]} bxc4 {[%emt 0:00:26]} 15. bxc4 {[%emt 0:00:05]} Rb8 {[%emt 0:01:15]} 16. g6 {[%emt 0:05:32]} fxg6 {[%emt 0:03:36]} 17. Ng5 {[%emt 0:00:15]} Qb2 {[%emt 0:00:57]} 18. Qxb2 {[%emt 0:01:05]} Rxb2 {[%emt 0:00:02]} 19. Nxe6 {[%emt 0:00:01]} Rf6 {[%emt 0:00:07]} 20. cxd5 {[%emt 0:00:50]} cxd5 {[%emt 0:00:10]} 21. Nf4 {[%emt 0:00:15]} Bb7 {[%emt 0:01:04]} 22. hxg6 {[%emt 0:02:54]} hxg6 {[%emt 0:00:23]} 23. O-O-O {[%emt 0:01:14]} Rbb6 {[%emt 0:01:04]} 24. Nfxd5 {[%emt 0:00:04]} Bxd5 {[%emt 0:00:03]} 25. Nxd5 {[%emt 0:00:01]} Rfc6+ {[%emt 0:00:01]} 26. Nc3 {[%emt 0:00:03]} Kf7 {[%emt 0:00:44]} 27. Bf3 {[%emt 0:00:15]} Rc8 {[%emt 0:00:01]} 28. Bd5+ {[%emt 0:00:01]} Kf8 {[%emt 0:00:07]} 29. Kc2 {[%emt 0:00:06]} Nef6 {[%emt 0:00:11]} 30. Bg2 {[%emt 0:00:23]} Nc5 {[%emt 0:00:12]} 31. Rb1 {[%emt 0:00:12]} Rd6 {[%emt 0:00:03]} 32. f3 {[%emt 0:00:32]} Na4 {[%emt 0:00:06]} 33. Rb3 {[%emt 0:00:09]} Nd5 {[%emt 0:00:02]} 34. Bh3 {[%emt 0:00:06]} Rc7 {[%emt 0:00:13]} 35. Re1 {[%emt 0:00:01]} Rdc6 {[%emt 0:00:13]} 36. e4 {[%emt 0:00:09]} Ndxc3 {[%emt 0:00:02]} 37. dxc3 {[%emt 0:00:01]} Rxc3+ {[%emt 0:00:01]} 38. Kd2 {[%emt 0:00:05]} Rc2+ {[%emt 0:00:04]} 39. Ke3 {[%emt 0:00:05]} Rxa2 {[%emt 0:00:11]} 40. Rb8+ {[%emt 0:00:06]} Ke7 {[%emt 0:00:04]} 41. Rg1 {[%emt 0:00:13]} Rc3+ {[%emt 0:00:12]} 42. Kf4 {[%emt 0:00:03]} Raa3 {[%emt 0:00:03]} 43. Rxg6 {[%emt 0:00:22]} Kf7 {[%emt 0:00:46]} 44. Rg3 {[%emt 0:00:05]} Nc5 {[%emt 0:00:05]} 45. Ra8 {[%emt 0:00:10]} Nd3+ {[%emt 0:00:28]} 46. Kg5 {[%emt 0:00:18]} Rc7 {[%emt 0:00:20]} 47. f4 {[%emt 0:00:11]} Nc5 {[%emt 0:00:04]} 48. Rxa3 {[%emt 0:00:03]} 1-0

[Event "RUS-ch Women Rapid 2019"]
[Site "Sochi"]
[Date "2019.10.16"]
[Round "6.7"]
[White "Semenova, Elena"]
[Black "Charochkina, Daria"]
[Result "0-1"]
[ECO "B01"]
[WhiteElo "2282"]
[BlackElo "2289"]
[Annotator "NA"]
[PlyCount "96"]
[EventDate "2019.10.15"]
[EventType "swiss"]
[EventCountry "RUS"]
[SourceTitle "playchess.com"]
[Source "ChessBase"]
[SourceQuality "1"]
[TimeControl "900+10"]

1. e4 {[%emt 0:00:00]} d5 {[%emt 0:00:00]} 2. exd5 {[%emt 0:00:00]} Qxd5 {[%emt 0:00:00]} 3. Nc3 {[%emt 0:00:00]} Qd6 {[%emt 0:00:00]} 4. d4 {[%emt 0:00:00]} Nf6 {[%emt 0:00:00]} 5. Nf3 {[%emt 0:00:03]} g6 $14 {[%emt 0:00:00]} 6. Be2 {[%emt 0:00:07]} Bg7 {[%emt 0:00:02]} 7. O-O {[%emt 0:00:12]} O-O {[%emt 0:00:02]} 8. h3 {[%emt 0:00:18]} a6 {[%emt 0:00:02]} 9. Re1 {[%emt 0:00:14]} b5 {[%emt 0:00:03]} 10. Ne5 {[%emt 0:01:28]} Rd8 {[%emt 0:05:54]} 11. Bf3 {[%emt 0:00:41]} Ra7 {[%emt 0:00:07]} 12. Bf4 {[%emt 0:00:37]} Qb6 {[%emt 0:00:22]} 13. Qe2 {[%emt 0:00:44]} e6 {[%emt 0:03:05]} 14. a4 {[%emt 0:01:09]} c6 {[%emt 0:01:29]} 15. axb5 {[%emt 0:03:34]} cxb5 {[%emt 0:00:10]} 16. Be3 {[%emt 0:02:20]} Nd5 {[%emt 0:00:07]} 17. Nxd5 {[%emt 0:01:45]} exd5 {[%emt 0:00:03]} 18. Bd2 {[%emt 0:00:08]} a5 {[%emt 0:01:12]} 19. Nd3 {[%emt 0:01:04]} Bxd4 {[%emt 0:02:11]} 20. c3 {[%emt 0:01:16]} Bf6 {[%emt 0:00:51]} 21. Bh6 {[%emt 0:00:12]} Be6 {[%emt 0:00:14]} 22. Nf4 {[%emt 0:00:24]} Re7 {[%emt 0:00:08]} 23. Qc2 {[%emt 0:00:51]} Na6 {[%emt 0:01:23]} 24. Ne2 {[%emt 0:00:44]} Bf5 {[%emt 0:00:12]} 25. Qd2 {[%emt 0:00:14]} Be4 {[%emt 0:00:12]} 26. Nd4 {[%emt 0:00:21]} Nc5 {[%emt 0:00:08]} 27. Qf4 {[%emt 0:00:11]} Nd3 {[%emt 0:00:10]} 28. Qg3 {[%emt 0:00:11]} Nxe1 {[%emt 0:00:10]} 29. Rxe1 {[%emt 0:00:01]} Bxf3 {[%emt 0:00:08]} 30. Rxe7 {[%emt 0:00:05]} Bxe7 {[%emt 0:00:01]} 31. Qxf3 {[%emt 0:00:06]} Bf6 {[%emt 0:00:33]} 32. Nxb5 {[%emt 0:00:08]} Bg7 {[%emt 0:00:16]} 33. Bxg7 {[%emt 0:00:17]} Kxg7 {[%emt 0:00:02]} 34. Nd4 {[%emt 0:00:01]} Qxb2 35. Qg3 Qb1+ {[%emt 0:00:37]} 36. Kh2 {[%emt 0:00:02]} Qb8 {[%emt 0:00:25]} 37. f4 {[%emt 0:00:00]} Re8 {[%emt 0:00:17]} 38. Nf5+ {[%emt 0:00:06]} Kf8 {[%emt 0:00:01]} 39. Ne3 {[%emt 0:00:46]} Qd6 {[%emt 0:00:01]} 40. Qf3 {[%emt 0:00:26]} Re4 {[%emt 0:00:02]} 41. g3 a4 42. c4 {[%emt 0:00:24]} Qe6 {[%emt 0:00:34]} 43. Nxd5 {[%emt 0:00:31]} Re2+ {[%emt 0:00:02]} 44. Kg1 {[%emt 0:00:05]} Ra2 {[%emt 0:00:04]} 45. Qc3 {[%emt 0:00:09]} f6 {[%emt 0:00:29]} 46. Qb4+ {[%emt 0:00:20]} Kg7 {[%emt 0:00:02]} 47. Qb7+ {[%emt 0:00:14]} Kh6 {[%emt 0:00:01]} 48. Qb1 {[%emt 0:00:04]} Qe2 {[%emt 0:00:13]} 0-1

[Event "RUS-ch Women Rapid 2019"]
[Site "Sochi"]
[Date "2019.10.16"]
[Round "6.9"]
[White "Utiatskaja, Irina"]
[Black "Gritsayeva, Oksana"]
[Result "1-0"]
[ECO "B90"]
[WhiteElo "2172"]
[BlackElo "2260"]
[Annotator "NA"]
[PlyCount "91"]
[EventDate "2019.10.15"]
[EventType "swiss"]
[EventCountry "RUS"]
[SourceTitle "playchess.com"]
[Source "ChessBase"]
[SourceQuality "1"]
[TimeControl "900+10"]

1. e4 {[%emt 0:00:00]} c5 {[%emt 0:00:00]} 2. Nf3 {[%emt 0:00:00]} d6 {[%emt 0:00:00]} 3. d4 {[%emt 0:00:04]} cxd4 {[%emt 0:00:00]} 4. Nxd4 {[%emt 0:00:02]} Nf6 $11 {[%emt 0:00:00]} 5. Nc3 {[%emt 0:00:33]} a6 {[%emt 0:00:00]} 6. Be3 {[%emt 0:00:49]} e5 {[%emt 0:00:00]} 7. Nf3 {[%emt 0:00:01]} Qc7 {[%emt 0:00:05]} 8. Bg5 {[%emt 0:00:13]} Nbd7 {[%emt 0:00:02]} 9. a4 {[%emt 0:00:05]} Be7 {[%emt 0:00:27]} 10. Nd2 {[%emt 0:00:11]} h6 {[%emt 0:00:35]} 11. Bh4 {[%emt 0:00:44]} b6 {[%emt 0:03:12]} 12. Bc4 {[%emt 0:00:26]} Bb7 {[%emt 0:00:07]} 13. Qe2 {[%emt 0:00:13]} O-O {[%emt 0:00:22]} 14. O-O {[%emt 0:00:05]} Rfe8 {[%emt 0:00:09]} 15. Rfd1 {[%emt 0:01:13]} Nc5 {[%emt 0:03:02]} 16. Bxf6 {[%emt 0:00:36]} Bxf6 {[%emt 0:00:02]} 17. Bd5 {[%emt 0:00:18]} Ne6 {[%emt 0:02:15]} 18. Bxb7 {[%emt 0:01:20]} Nd4 {[%emt 0:01:24]} 19. Qd3 {[%emt 0:00:18]} Qxb7 {[%emt 0:00:02]} 20. Nd5 {[%emt 0:00:02]} Be7 {[%emt 0:01:05]} 21. c3 {[%emt 0:01:02]} Ne6 {[%emt 0:00:01]} 22. g3 {[%emt 0:00:34]} b5 {[%emt 0:01:16]} 23. b4 {[%emt 0:00:50]} Rac8 {[%emt 0:00:25]} 24. Nf1 {[%emt 0:00:21]} Bg5 {[%emt 0:00:31]} 25. h4 {[%emt 0:00:03]} Bd8 {[%emt 0:00:02]} 26. Nfe3 {[%emt 0:01:08]} g6 {[%emt 0:00:10]} 27. Ra2 {[%emt 0:00:30]} Kg7 {[%emt 0:00:30]} 28. Rda1 {[%emt 0:00:15]} Nc7 {[%emt 0:01:12]} 29. axb5 {[%emt 0:01:21]} axb5 {[%emt 0:00:01]} 30. Ra7 {[%emt 0:01:17]} Qc6 {[%emt 0:00:05]} 31. Nxc7 {[%emt 0:00:46]} Rxc7 {[%emt 0:00:03]} 32. Rxc7 {[%emt 0:00:06]} Bxc7 {[%emt 0:00:07]} 33. Nd5 {[%emt 0:00:06]} Rb8 {[%emt 0:00:30]} 34. Ra7 {[%emt 0:00:39]} Bb6 {[%emt 0:00:20]} 35. Qf3 {[%emt 0:02:12]} Qe8 {[%emt 0:02:20]} 36. Qf6+ {[%emt 0:00:02]} Kg8 {[%emt 0:00:09]} 37. Ne7+ {[%emt 0:00:31]} Kh7 {[%emt 0:00:01]} 38. Nf5 {[%emt 0:00:13]} gxf5 {[%emt 0:00:09]} 39. Rxf7+ {[%emt 0:00:01]} Qxf7 {[%emt 0:00:01]} 40. Qxf7+ {[%emt 0:00:03]} Kh8 {[%emt 0:00:01]} 41. Qf6+ {[%emt 0:00:30]} Kg8 {[%emt 0:00:11]} 42. exf5 {[%emt 0:00:05]} Rf8 {[%emt 0:00:35]} 43. Qg6+ {[%emt 0:00:04]} Kh8 {[%emt 0:00:01]} 44. Qxh6+ {[%emt 0:00:01]} Kg8 {[%emt 0:00:01]} 45. Qg6+ {[%emt 0:00:24]} Kh8 {[%emt 0:00:01]} 46. f6 {[%emt 0:00:03]} 1-0

[Event "RUS-ch Women Rapid 2019"]
[Site "Sochi"]
[Date "2019.10.16"]
[Round "6.10"]
[White "Karavaeva, Olga"]
[Black "Gvanceladze, Anna"]
[Result "1-0"]
[ECO "B13"]
[WhiteElo "2260"]
[BlackElo "2270"]
[Annotator "NA"]
[PlyCount "113"]
[EventDate "2019.10.15"]
[EventType "swiss"]
[EventCountry "RUS"]
[SourceTitle "playchess.com"]
[Source "ChessBase"]
[SourceQuality "1"]
[TimeControl "900+10"]

1. c4 {[%emt 0:00:00]} c6 {[%emt 0:01:40]} 2. e4 {[%emt 0:00:00]} d5 {[%emt 0:00:08]} 3. exd5 {[%emt 0:00:00]} cxd5 {[%emt 0:00:01]} 4. d4 {[%emt 0:00:00]} Nf6 {[%emt 0:00:08]} 5. Nc3 {[%emt 0:00:00]} Nc6 {[%emt 0:00:44]} 6. Nf3 {[%emt 0:00:02]} Be6 {[%emt 0:01:20]} 7. c5 {[%emt 0:01:01]} g6 {[%emt 0:00:28]} 8. Bd3 {[%emt 0:00:21]} Bg7 {[%emt 0:00:08]} 9. O-O {[%emt 0:00:05]} O-O {[%emt 0:00:12]} 10. h3 {[%emt 0:00:42]} Bf5 {[%emt 0:04:00]} 11. a3 {[%emt 0:02:12]} Ne4 {[%emt 0:00:17]} 12. Be3 {[%emt 0:00:36]} b6 {[%emt 0:00:57]} 13. cxb6 {[%emt 0:00:29]} axb6 {[%emt 0:00:04]} 14. Rc1 {[%emt 0:00:20]} Na5 {[%emt 0:01:38]} 15. Re1 {[%emt 0:02:02]} Nxc3 {[%emt 0:00:20]} 16. Rxc3 {[%emt 0:00:08]} Bxd3 {[%emt 0:00:02]} 17. Qxd3 {[%emt 0:00:05]} Nc4 {[%emt 0:00:02]} 18. Bc1 {[%emt 0:00:34]} Qd6 {[%emt 0:00:25]} 19. g3 {[%emt 0:02:14]} e6 {[%emt 0:02:11]} 20. Re2 {[%emt 0:00:40]} Rac8 {[%emt 0:00:01]} 21. Rec2 {[%emt 0:01:51]} Qd7 {[%emt 0:00:58]} 22. Bf4 h6 23. h4 {[%emt 0:00:19]} h5 {[%emt 0:00:13]} 24. Kg2 {[%emt 0:00:15]} Rfe8 {[%emt 0:00:26]} 25. Ne5 {[%emt 0:02:23]} Nxe5 {[%emt 0:00:24]} 26. dxe5 {[%emt 0:00:29]} Qb7 {[%emt 0:00:38]} 27. Qb5 {[%emt 0:01:03]} d4+ {[%emt 0:01:04]} 28. Rc6 {[%emt 0:00:01]} d3 {[%emt 0:00:02]} 29. R2c3 {[%emt 0:00:01]} Red8 {[%emt 0:00:18]} 30. Kf1 {[%emt 0:01:48]} Rxc6 {[%emt 0:00:11]} 31. Qxc6 {[%emt 0:00:14]} Qxc6 {[%emt 0:00:07]} 32. Rxc6 {[%emt 0:00:01]} d2 {[%emt 0:00:11]} 33. Bxd2 {[%emt 0:00:19]} Rxd2 {[%emt 0:00:00]} 34. Rxb6 {[%emt 0:00:11]} Bxe5 {[%emt 0:00:01]} 35. b4 {[%emt 0:00:13]} Ra2 {[%emt 0:01:00]} 36. Ra6 {[%emt 0:00:10]} Kf8 {[%emt 0:00:18]} 37. b5 {[%emt 0:00:01]} Ke7 {[%emt 0:00:01]} 38. b6 {[%emt 0:00:03]} f5 {[%emt 0:00:22]} 39. a4 {[%emt 0:00:06]} Kd7 {[%emt 0:00:09]} 40. a5 {[%emt 0:00:09]} Rb2 {[%emt 0:00:10]} 41. Ra7+ {[%emt 0:00:12]} Kd6 {[%emt 0:00:04]} 42. b7 {[%emt 0:00:04]} Rxf2+ {[%emt 0:00:14]} 43. Ke1 {[%emt 0:00:10]} Rb2 {[%emt 0:00:01]} 44. a6 {[%emt 0:00:05]} Bxg3+ {[%emt 0:00:08]} 45. Kd1 {[%emt 0:00:01]} Kc7 {[%emt 0:00:11]} 46. Kc1 {[%emt 0:00:03]} Rb4 {[%emt 0:00:04]} 47. Kc2 {[%emt 0:00:01]} Bd6 {[%emt 0:00:13]} 48. Ra8 {[%emt 0:00:14]} Kd7 {[%emt 0:00:10]} 49. Rg8 {[%emt 0:00:21]} Ra4 {[%emt 0:00:08]} 50. Ra8 {[%emt 0:00:31]} f4 {[%emt 0:00:28]} 51. a7 {[%emt 0:00:04]} Rxa7 {[%emt 0:00:09]} 52. Rxa7 {[%emt 0:00:02]} Bb8 {[%emt 0:00:01]} 53. Ra6 {[%emt 0:00:08]} Be5 {[%emt 0:00:24]} 54. Kd3 {[%emt 0:00:05]} Bb8 {[%emt 0:00:09]} 55. Ke4 {[%emt 0:00:04]} Bc7 {[%emt 0:00:09]} 56. Ra8 {[%emt 0:00:05]} e5 {[%emt 0:00:07]} 57. b8=Q {[%emt 0:00:04]} 1-0

[Event "RUS-ch Women Rapid 2019"]
[Site "Sochi"]
[Date "2019.10.16"]
[Round "6.11"]
[White "Ivanova, Anastasia S."]
[Black "Bykova, Anastasia"]
[Result "0-1"]
[ECO "B18"]
[WhiteElo "1866"]
[BlackElo "2247"]
[Annotator "NA"]
[PlyCount "54"]
[EventDate "2019.10.15"]
[EventType "swiss"]
[EventCountry "RUS"]
[SourceTitle "playchess.com"]
[Source "ChessBase"]
[SourceQuality "1"]
[TimeControl "900+10"]

1. e4 {[%emt 0:00:00]} c6 {[%emt 0:00:00]} 2. d4 {[%emt 0:00:00]} d5 {[%emt 0:00:00]} 3. Nc3 {[%emt 0:00:00]} dxe4 {[%emt 0:00:00]} 4. Nxe4 {[%emt 0:00:00]} Bf5 {[%emt 0:00:00]} 5. Ng3 {[%emt 0:00:00]} Bg6 {[%emt 0:00:00]} 6. Nf3 {[%emt 0:00:00]} Nd7 {[%emt 0:00:00]} 7. Bd3 {[%emt 0:00:00]} Bxd3 {[%emt 0:00:01]} 8. Qxd3 $11 {[%emt 0:00:00]} Ngf6 {[%emt 0:00:17]} 9. O-O {[%emt 0:00:04]} e6 {[%emt 0:00:02]} 10. Bf4 {[%emt 0:00:20]} Be7 {[%emt 0:00:11]} 11. c4 {[%emt 0:00:02]} O-O {[%emt 0:00:09]} 12. Rfe1 {[%emt 0:00:34]} Re8 {[%emt 0:00:14]} 13. b3 {[%emt 0:00:41]} a5 {[%emt 0:00:05]} 14. Rad1 {[%emt 0:00:44]} a4 {[%emt 0:00:17]} 15. Rb1 {[%emt 0:00:22]} axb3 {[%emt 0:03:49]} 16. Rxb3 {[%emt 0:02:55]} Ra7 {[%emt 0:00:25]} 17. Reb1 {[%emt 0:02:19]} Qa8 {[%emt 0:00:01]} 18. Ne5 {[%emt 0:01:02]} Rd8 {[%emt 0:00:52]} 19. Qf3 {[%emt 0:02:08]} Nxe5 {[%emt 0:01:50]} 20. dxe5 {[%emt 0:00:50]} Nd7 {[%emt 0:00:05]} 21. Be3 {[%emt 0:02:12]} Rxa2 {[%emt 0:01:10]} 22. Rxb7 {[%emt 0:00:39]} Nxe5 {[%emt 0:00:02]} 23. Qe4 {[%emt 0:00:26]} Bf6 {[%emt 0:00:21]} 24. Bd4 {[%emt 0:01:05]} Ng6 {[%emt 0:03:43]} 25. Bxf6 {[%emt 0:01:09]} gxf6 {[%emt 0:00:02]} 26. Qxc6 {[%emt 0:00:34]} Ra1 {[%emt 0:00:45]} 27. Qb5 {[%emt 0:00:55]} Ne5 {[%emt 0:01:50]} 0-1

[Event "RUS-ch Women Rapid 2019"]
[Site "Sochi"]
[Date "2019.10.16"]
[Round "6.12"]
[White "Garifullina, Leya"]
[Black "Lysenko, Margarita"]
[Result "0-1"]
[ECO "B90"]
[WhiteElo "2330"]
[BlackElo "2243"]
[Annotator "NA"]
[PlyCount "134"]
[EventDate "2019.10.15"]
[EventType "swiss"]
[EventCountry "RUS"]
[SourceTitle "playchess.com"]
[Source "ChessBase"]
[SourceQuality "1"]
[TimeControl "900+10"]

1. e4 {[%emt 0:00:00]} c5 {[%emt 0:00:00]} 2. Nf3 {[%emt 0:00:00]} d6 {[%emt 0:00:00]} 3. d4 {[%emt 0:00:00]} cxd4 {[%emt 0:00:00]} 4. Nxd4 {[%emt 0:00:02]} Nf6 {[%emt 0:00:00]} 5. Nc3 {[%emt 0:00:02]} a6 {[%emt 0:00:02]} 6. h3 {[%emt 0:00:02]} e5 {[%emt 0:00:06]} 7. Nb3 {[%emt 0:00:04]} Be6 {[%emt 0:04:29]} 8. f4 {[%emt 0:00:06]} exf4 {[%emt 0:01:10]} 9. Bxf4 {[%emt 0:00:04]} Nc6 {[%emt 0:00:09]} 10. Qe2 {[%emt 0:00:05]} Ne5 {[%emt 0:03:19]} 11. O-O-O {[%emt 0:00:08]} Qc7 {[%emt 0:00:16]} 12. g4 {[%emt 0:00:18]} Be7 {[%emt 0:00:40]} 13. Nd4 {[%emt 0:01:15]} g6 {[%emt 0:03:26]} 14. Kb1 {[%emt 0:01:51]} Rc8 {[%emt 0:00:09]} 15. Bg2 {[%emt 0:00:11]} O-O {[%emt 0:00:18]} 16. Nd5 {[%emt 0:00:06]} Bxd5 {[%emt 0:00:08]} 17. exd5 {[%emt 0:00:02]} Rfe8 {[%emt 0:00:11]} 18. Nf3 {[%emt 0:00:44]} Nc4 {[%emt 0:00:17]} 19. Bc1 {[%emt 0:00:04]} Bf8 {[%emt 0:00:29]} 20. Qd3 {[%emt 0:00:04]} Bg7 {[%emt 0:00:11]} 21. Nd4 {[%emt 0:00:46]} Nd7 {[%emt 0:00:17]} 22. Qb3 {[%emt 0:02:01]} Na5 {[%emt 0:00:50]} 23. Qg3 {[%emt 0:00:17]} Bxd4 {[%emt 0:00:16]} 24. c3 {[%emt 0:00:13]} Bg7 {[%emt 0:00:10]} 25. h4 {[%emt 0:00:04]} Qb6 {[%emt 0:00:30]} 26. Ka1 {[%emt 0:00:03]} Nc4 {[%emt 0:00:31]} 27. h5 {[%emt 0:00:23]} Ne3 {[%emt 0:00:29]} 28. hxg6 {[%emt 0:00:59]} hxg6 {[%emt 0:00:07]} 29. Rd3 {[%emt 0:00:47]} Nxg2 {[%emt 0:00:21]} 30. Qxg2 {[%emt 0:00:02]} Ne5 {[%emt 0:00:01]} 31. Rdh3 {[%emt 0:00:03]} Qd8 {[%emt 0:00:58]} 32. Qh2 {[%emt 0:00:39]} Kf8 {[%emt 0:00:14]} 33. Rh7 {[%emt 0:00:16]} Nf3 {[%emt 0:00:12]} 34. Qh3 {[%emt 0:02:53]} Qf6 {[%emt 0:00:01]} 35. Rxg7 {[%emt 0:00:54]} Kxg7 {[%emt 0:00:21]} 36. g5 {[%emt 0:00:03]} Qe5 {[%emt 0:00:10]} 37. Qxf3 {[%emt 0:00:04]} Rh8 {[%emt 0:00:06]} 38. Rf1 {[%emt 0:00:01]} Qf5 {[%emt 0:00:13]} 39. Qg2 {[%emt 0:00:16]} Qd3 {[%emt 0:00:10]} 40. Qf2 {[%emt 0:00:05]} Qf5 {[%emt 0:00:08]} 41. Qg1 {[%emt 0:00:14]} Qxd5 {[%emt 0:00:05]} 42. Be3 {[%emt 0:00:02]} Kg8 {[%emt 0:00:07]} 43. Bd4 {[%emt 0:00:05]} Rh7 {[%emt 0:00:06]} 44. Re1 {[%emt 0:00:49]} b5 {[%emt 0:00:12]} 45. a3 {[%emt 0:00:05]} a5 {[%emt 0:00:02]} 46. Qg4 {[%emt 0:00:10]} Rf8 {[%emt 0:00:17]} 47. Bf6 {[%emt 0:00:42]} Qf5 {[%emt 0:00:24]} 48. Qd4 {[%emt 0:00:10]} Qc5 {[%emt 0:00:04]} 49. Qxc5 {[%emt 0:00:08]} dxc5 {[%emt 0:00:01]} 50. Re5 {[%emt 0:00:01]} Rc8 {[%emt 0:00:08]} 51. Re7 {[%emt 0:00:04]} b4 {[%emt 0:00:09]} 52. Ka2 {[%emt 0:00:01]} bxa3 {[%emt 0:00:14]} 53. Kxa3 {[%emt 0:00:01]} Rh1 {[%emt 0:00:12]} 54. Ka2 {[%emt 0:00:04]} c4 {[%emt 0:00:20]} 55. Ra7 {[%emt 0:00:07]} Rf1 {[%emt 0:00:06]} 56. Rxa5 {[%emt 0:00:17]} Rf5 {[%emt 0:00:05]} 57. Ra6 {[%emt 0:00:03]} Rb5 {[%emt 0:00:05]} 58. Ka1 {[%emt 0:00:49]} Rcb8 {[%emt 0:00:04]} 59. Ra2 {[%emt 0:00:02]} Rf5 {[%emt 0:00:11]} 60. Kb1 {[%emt 0:00:47]} Rf1+ {[%emt 0:00:03]} 61. Kc2 {[%emt 0:00:00]} Re8 {[%emt 0:00:02]} 62. Kd2 {[%emt 0:00:03]} Rf2+ {[%emt 0:00:34]} 63. Kd1 {[%emt 0:00:02]} Rg2 {[%emt 0:00:09]} 64. Ra4 {[%emt 0:00:06]} Rxb2 {[%emt 0:00:22]} 65. Rxc4 {[%emt 0:00:01]} Ra8 {[%emt 0:00:09]} 66. Kc1 {[%emt 0:00:42]} Rf2 {[%emt 0:00:11]} 67. Kb1 {[%emt 0:00:17]} Re8 {[%emt 0:00:03]} 0-1

[Event "RUS-ch Women Rapid 2019"]
[Site "Sochi"]
[Date "2019.10.16"]
[Round "7.11"]
[White "Chan, Naruna"]
[Black "Chernyak, Viktoria"]
[Result "0-1"]
[ECO "B12"]
[WhiteElo "1890"]
[BlackElo "2284"]
[Annotator "NA RC"]
[PlyCount "88"]
[EventDate "2019.10.15"]
[EventType "swiss"]
[EventCountry "RUS"]
[SourceTitle "playchess.com"]
[Source "ChessBase"]
[SourceQuality "1"]
[TimeControl "900+10"]

1. e4 {[%emt 0:00:00]} c6 {[%emt 0:00:00]} 2. d4 {[%emt 0:00:00]} d5 {[%emt 0:00:00]} 3. e5 {[%emt 0:00:00]} Bf5 {[%emt 0:00:00]} 4. h4 {[%emt 0:00:00]} h5 {[%emt 0:00:00]} 5. Bd3 {[%emt 0:00:00]} Bxd3 {[%emt 0:00:03]} 6. Qxd3 {[%emt 0:00:00]} e6 {[%emt 0:00:05]} 7. Nf3 {[%emt 0:00:06]} Ne7 {[%emt 0:00:54]} 8. Bg5 {[%emt 0:02:31]} Qb6 {[%emt 0:00:02]} 9. b3 {[%emt 0:00:18]} Nf5 {[%emt 0:00:05]} 10. O-O {[%emt 0:00:08]} c5 {[%emt 0:01:19]} 11. c4 {[%emt 0:00:38]} dxc4 {[%emt 0:00:07]} 12. Qxc4 {[%emt 0:00:07]} Qc6 {[%emt 0:03:29]} 13. Nc3 {[%emt 0:08:59]} cxd4 {[%emt 0:00:55]} 14. Nb5 {[%emt 0:00:17]} Qxc4 {[%emt 0:00:56]} 15. bxc4 {[%emt 0:00:02]} Na6 {[%emt 0:00:06]} 16. Nfxd4 {[%emt 0:01:08]} Nxd4 {[%emt 0:00:02]} 17. Nxd4 {[%emt 0:00:01]} Bc5 {[%emt 0:00:42]} 18. Rfd1 {[%emt 0:00:35]} O-O {[%emt 0:00:06]} 19. Nb3 {[%emt 0:01:38]} Ba3 {[%emt 0:01:10]} 20. Rab1 {[%emt 0:00:18]} Rfc8 {[%emt 0:01:04]} 21. Rd7 {[%emt 0:00:17]} b6 {[%emt 0:00:44]} 22. Rd4 {[%emt 0:00:51]} Nb4 {[%emt 0:02:56]} 23. g4 {[%emt 0:00:25]} Nc6 {[%emt 0:00:55]} 24. Re4 {[%emt 0:00:03]} hxg4 {[%emt 0:00:03]} 25. Rbe1 {[%emt 0:00:25]} g3 {[%emt 0:00:55]} 26. fxg3 {[%emt 0:00:03]} Rc7 {[%emt 0:00:13]} 27. h5 {[%emt 0:00:22]} Bf8 {[%emt 0:00:36]} 28. Rd1 {[%emt 0:00:08]} Rac8 {[%emt 0:00:05]} 29. Kg2 {[%emt 0:00:11]} Nb4 {[%emt 0:00:07]} 30. Rdd4 {[%emt 0:00:15]} Nxa2 {[%emt 0:00:05]} 31. Rg4 {[%emt 0:00:09]} Kh7 {[%emt 0:00:17]} 32. Rgf4 {[%emt 0:00:05]} Nb4 {[%emt 0:00:13]} 33. Nd2 {[%emt 0:00:10]} Nc2 {[%emt 0:00:23]} 34. Rde4 {[%emt 0:00:13]} a5 {[%emt 0:00:26]} 35. Re2 {[%emt 0:00:02]} Nb4 {[%emt 0:00:22]} 36. Ref2 {[%emt 0:00:04]} Nd3 {[%emt 0:00:04]} 37. Rxf7 {[%emt 0:00:15]} Nxf2 {[%emt 0:00:03]} 38. Rxf2 {[%emt 0:00:02]} a4 {[%emt 0:00:05]} 39. Rf1 {[%emt 0:00:18]} a3 {[%emt 0:00:03]} 40. Ra1 {[%emt 0:00:09]} Rd7 {[%emt 0:00:06]} 41. Ra2 {[%emt 0:00:17]} Rd3 {[%emt 0:00:08]} 42. Nb1 {[%emt 0:00:18]} Rxc4 {[%emt 0:00:05]} 43. Nd2 {[%emt 0:00:10]} Ra4 {[%emt 0:00:19]} 44. Kf2 {[%emt 0:00:07]} Bc5+ {[%emt 0:00:03]} 0-1